[Event "Live Chess"]
[Site "Chess.com"]
[Date "2023.05.21"]
[Round "-"]
[White "EdenHazard8"]
[Black "martynstanley"]
[Result "1-0"]
[WhiteElo "1942"]
[BlackElo "1030"]
[TimeControl "300"]
[EndTime "7:28:53 PDT"]
[Termination "EdenHazard8 won by checkmate"]

1. e4 {[%clk 0:04:59.6]} 1... e6 {[%clk 0:04:59.4]} 2. d4 {[%clk 0:04:58.4]}
2... d5 {[%clk 0:04:58.8]} 3. exd5 {[%clk 0:04:58.3]} 3... exd5 {[%clk
0:04:57.9]} 4. Bd3 {[%clk 0:04:58.2]} 4... c5 {[%clk 0:04:57.3]} 5. Nf3 {[%clk
0:04:58.1]} 5... Nc6 {[%clk 0:04:56.6]} 6. c3 {[%clk 0:04:57.1]} 6... Qb6 {[%clk
0:04:55.8]} 7. O-O {[%clk 0:04:55.8]} 7... Qc7 {[%clk 0:04:53.6]} 8. Re1+ {[%clk
0:04:54.7]} 8... Nge7 {[%clk 0:04:52.4]} 9. Bg5 {[%clk 0:04:53.6]} 9... b6
{[%clk 0:04:51.1]} 10. Ne5 {[%clk 0:04:52.2]} 10... Nxe5 {[%clk 0:04:48.1]} 11.
Rxe5 {[%clk 0:04:52.1]} 11... Bb7 {[%clk 0:04:46.8]} 12. Na3 {[%clk 0:04:45.2]}
12... f6 {[%clk 0:04:46.1]} 13. Qh5+ {[%clk 0:04:44]} 13... Kd8 {[%clk
0:04:40.9]} 14. Nb5 {[%clk 0:04:39.9]} 14... Qc6 {[%clk 0:04:38.3]} 15. Rae1
{[%clk 0:04:35.5]} 15... fxe5 {[%clk 0:04:36.6]} 16. Rxe5 {[%clk 0:04:34]} 16...
cxd4 {[%clk 0:04:35]} 17. Nxd4 {[%clk 0:04:32.8]} 17... Qd6 {[%clk 0:04:32.6]}
18. Nf5 {[%clk 0:04:29.6]} 18... g6 {[%clk 0:04:16.5]} 19. Nxd6 {[%clk
0:04:24.5]} 19... gxh5 {[%clk 0:04:15.5]} 20. Nf7+ {[%clk 0:04:22.8]} 20... Kc7
{[%clk 0:04:09.2]} 21. Bxe7 {[%clk 0:04:20.7]} 21... Rg8 {[%clk 0:04:07]} 22.
Bxh7 {[%clk 0:04:12.4]} 22... Rg7 {[%clk 0:04:03.7]} 23. Bxf8 {[%clk 0:04:07.6]}
23... Rxf8 {[%clk 0:04:01.8]} 24. Re7+ {[%clk 0:04:07.5]} 24... Kc6 {[%clk
0:04:00.4]} 25. Ne5+ {[%clk 0:04:06.4]} 25... Kc5 {[%clk 0:03:52.3]} 26. Rxg7
{[%clk 0:04:06.3]} 26... Re8 {[%clk 0:03:49.3]} 27. Nd3+ {[%clk 0:04:00.9]}
27... Kc4 {[%clk 0:03:45.7]} 28. Rxb7 {[%clk 0:03:59.5]} 28... d4 {[%clk
0:03:40.4]} 29. Rc7+ {[%clk 0:03:58]} 29... Kd5 {[%clk 0:03:38.4]} 30. cxd4
{[%clk 0:03:55]} 30... Kxd4 {[%clk 0:03:37]} 31. Rd7+ {[%clk 0:03:42.1]} 31...
Kc4 {[%clk 0:03:35]} 32. h4 {[%clk 0:03:40.9]} 32... Re2 {[%clk 0:03:33.4]} 33.
Rc7+ {[%clk 0:03:34.2]} 33... Kd4 {[%clk 0:03:31.5]} 34. Nf4 {[%clk 0:03:32.8]}
34... Re1+ {[%clk 0:03:29.1]} 35. Kh2 {[%clk 0:03:31.4]} 35... Ra1 {[%clk
0:03:27.7]} 36. a3 {[%clk 0:03:29.6]} 36... Rb1 {[%clk 0:03:25.4]} 37. Bxb1
{[%clk 0:03:27.9]} 37... Ke5 {[%clk 0:03:23.9]} 38. Rh7 {[%clk 0:03:25.9]} 38...
Kxf4 {[%clk 0:03:22.9]} 39. Rxh5 {[%clk 0:03:24.7]} 39... a5 {[%clk 0:03:21.2]}
40. Rg5 {[%clk 0:03:24.6]} 40... b5 {[%clk 0:03:16.9]} 41. Rg3 {[%clk
0:03:24.5]} 41... b4 {[%clk 0:03:15]} 42. h5 {[%clk 0:03:24.4]} 42... bxa3
{[%clk 0:03:13.6]} 43. bxa3 {[%clk 0:03:24.2]} 43... a4 {[%clk 0:03:12.9]} 44.
h6 {[%clk 0:03:24.1]} 44... Ke5 {[%clk 0:03:11.4]} 45. h7 {[%clk 0:03:24]} 45...
Kd4 {[%clk 0:03:11]} 46. h8=Q+ {[%clk 0:03:23.9]} 46... Kc4 {[%clk 0:03:09]} 47.
Qh4+ {[%clk 0:03:23.8]} 47... Kb5 {[%clk 0:03:06.9]} 48. Rg5+ {[%clk 0:03:23.7]}
48... Kc6 {[%clk 0:03:05.9]} 49. Qh6+ {[%clk 0:03:23.6]} 49... Kd7 {[%clk
0:03:05.5]} 50. Rg7+ {[%clk 0:03:23.5]} 50... Ke8 {[%clk 0:03:03.7]} 51. Qh8#
{[%clk 0:03:23.4]} 1-0

[Event "Live Chess"]
[Site "Chess.com"]
[Date "2023.05.21"]
[Round "-"]
[White "zdanevych"]
[Black "f4nomore"]
[Result "0-1"]
[WhiteElo "1481"]
[BlackElo "1399"]
[TimeControl "300"]
[EndTime "7:28:57 PDT"]
[Termination "f4nomore won by resignation"]

1. d4 {[%clk 0:04:59.3]} 1... d6 {[%clk 0:04:57.7]} 2. c4 {[%clk 0:04:58.8]}
2... g6 {[%clk 0:04:55.6]} 3. e4 {[%clk 0:04:57.7]} 3... Bg7 {[%clk 0:04:54.5]}
4. Nc3 {[%clk 0:04:57.3]} 4... Nf6 {[%clk 0:04:52.5]} 5. h3 {[%clk 0:04:55.3]}
5... O-O {[%clk 0:04:50.2]} 6. Nf3 {[%clk 0:04:54.8]} 6... Nbd7 {[%clk
0:04:47.4]} 7. Bd3 {[%clk 0:04:54.2]} 7... c5 {[%clk 0:04:46.1]} 8. d5 {[%clk
0:04:52.8]} 8... a6 {[%clk 0:04:42.7]} 9. O-O {[%clk 0:04:51.5]} 9... b5 {[%clk
0:04:41.6]} 10. Bd2 {[%clk 0:04:45.8]} 10... b4 {[%clk 0:04:38.3]} 11. Ne2
{[%clk 0:04:43.7]} 11... a5 {[%clk 0:04:36.8]} 12. a3 {[%clk 0:04:42.5]} 12...
Bb7 {[%clk 0:04:32.2]} 13. axb4 {[%clk 0:04:41.2]} 13... cxb4 {[%clk 0:04:30.1]}
14. Rb1 {[%clk 0:04:37.7]} 14... Nc5 {[%clk 0:04:27.9]} 15. Bc2 {[%clk
0:04:16.2]} 15... Ncxe4 {[%clk 0:04:18.5]} 16. b3 {[%clk 0:04:14.4]} 16... Nxd2
{[%clk 0:04:15]} 17. Qxd2 {[%clk 0:04:14.3]} 17... e6 {[%clk 0:04:12.8]} 18. Nf4
{[%clk 0:04:10.2]} 18... e5 {[%clk 0:04:07.5]} 19. Nd3 {[%clk 0:04:04.7]} 0-1

[Event "Live Chess"]
[Site "Chess.com"]
[Date "2023.05.21"]
[Round "-"]
[White "Hussamalhaidar"]
[Black "Ferrarifan27"]
[Result "0-1"]
[WhiteElo "1152"]
[BlackElo "2046"]
[TimeControl "300"]
[EndTime "7:29:01 PDT"]
[Termination "Ferrarifan27 won by resignation"]

1. b3 {[%clk 0:04:57.6]} 1... d5 {[%clk 0:04:57.9]} 2. Bb2 {[%clk 0:04:56.9]}
2... Nc6 {[%clk 0:04:56.2]} 3. e3 {[%clk 0:04:55.1]} 3... e5 {[%clk 0:04:54.8]}
4. Bb5 {[%clk 0:04:52.8]} 4... f6 {[%clk 0:04:51.4]} 5. d3 {[%clk 0:04:40.1]}
5... Bd7 {[%clk 0:04:49.1]} 6. Nf3 {[%clk 0:04:34]} 6... a6 {[%clk 0:04:46.8]}
7. Bxc6 {[%clk 0:04:30.3]} 7... Bxc6 {[%clk 0:04:45.3]} 8. O-O {[%clk
0:04:25.3]} 8... Nh6 {[%clk 0:04:43.1]} 9. Nbd2 {[%clk 0:04:21.3]} 9... Bd6
{[%clk 0:04:38]} 10. h3 {[%clk 0:04:15]} 10... O-O {[%clk 0:04:35.3]} 11. a3
{[%clk 0:04:10.2]} 11... Qd7 {[%clk 0:04:27.8]} 12. Re1 {[%clk 0:04:02.9]} 12...
Kh8 {[%clk 0:04:19.8]} 13. Nf1 {[%clk 0:04:00.3]} 13... Rad8 {[%clk 0:04:12]}
14. Ng3 {[%clk 0:03:58]} 14... Nf5 {[%clk 0:04:10]} 15. e4 {[%clk 0:03:47.7]}
15... Nxg3 {[%clk 0:04:07.8]} 16. fxg3 {[%clk 0:03:43]} 16... dxe4 {[%clk
0:04:06.4]} 17. dxe4 {[%clk 0:03:27.6]} 17... Bc5+ {[%clk 0:04:02.8]} 18. Kh1
{[%clk 0:03:25.5]} 18... Qxd1 {[%clk 0:03:59.3]} 19. Raxd1 {[%clk 0:03:20.5]}
19... Rxd1 {[%clk 0:03:58.3]} 20. Rxd1 {[%clk 0:03:18.6]} 20... Bxe4 {[%clk
0:03:54.4]} 21. Rd7 {[%clk 0:03:06.3]} 21... Bd6 {[%clk 0:03:52.7]} 22. c4
{[%clk 0:02:57]} 22... Bc6 {[%clk 0:03:51]} 23. Rxd6 {[%clk 0:02:37.1]} 23...
cxd6 {[%clk 0:03:47.9]} 24. b4 {[%clk 0:02:32.8]} 24... d5 {[%clk 0:03:41.8]}
25. c5 {[%clk 0:02:28.9]} 25... Ra8 {[%clk 0:03:29.3]} 26. Kg1 {[%clk
0:02:26.8]} 26... a5 {[%clk 0:03:28.3]} 27. Kf2 {[%clk 0:02:21.2]} 27... axb4
{[%clk 0:03:27.1]} 28. axb4 {[%clk 0:02:18.2]} 28... Ra2 {[%clk 0:03:26.1]} 29.
b5 {[%clk 0:01:55.7]} 29... Rxb2+ {[%clk 0:03:22.9]} 30. Ke3 {[%clk 0:01:53.1]}
30... Rxb5 {[%clk 0:03:21.8]} 0-1

[Event "Live Chess"]
[Site "Chess.com"]
[Date "2023.05.21"]
[Round "-"]
[White "ProfPoisson"]
[Black "AttackingSnowLeopard"]
[Result "0-1"]
[WhiteElo "1218"]
[BlackElo "2156"]
[TimeControl "300"]
[EndTime "7:29:04 PDT"]
[Termination "AttackingSnowLeopard won by resignation"]

1. e4 {[%clk 0:04:55.1]} 1... c6 {[%clk 0:04:59.6]} 2. d4 {[%clk 0:04:52.6]}
2... d5 {[%clk 0:04:59.5]} 3. exd5 {[%clk 0:04:50.6]} 3... cxd5 {[%clk
0:04:58.8]} 4. c4 {[%clk 0:04:49.6]} 4... Nf6 {[%clk 0:04:56.5]} 5. Nc3 {[%clk
0:04:46.8]} 5... e6 {[%clk 0:04:55.9]} 6. Nf3 {[%clk 0:04:42.6]} 6... Nc6 {[%clk
0:04:53.5]} 7. cxd5 {[%clk 0:04:33.5]} 7... exd5 {[%clk 0:04:51.9]} 8. Bd3
{[%clk 0:04:29.6]} 8... Bb4 {[%clk 0:04:50.1]} 9. Bd2 {[%clk 0:04:25.6]} 9...
O-O {[%clk 0:04:49.2]} 10. O-O {[%clk 0:04:23]} 10... Bg4 {[%clk 0:04:46.5]} 11.
h3 {[%clk 0:04:01.5]} 11... Bh5 {[%clk 0:04:34.7]} 12. Qc2 {[%clk 0:03:31.5]}
12... Bxf3 {[%clk 0:04:31.6]} 13. gxf3 {[%clk 0:03:29.2]} 13... Nxd4 {[%clk
0:04:31.1]} 14. Qd1 {[%clk 0:03:21]} 14... Qd7 {[%clk 0:04:30.1]} 15. Kg2 {[%clk
0:02:50.9]} 15... Nf5 {[%clk 0:04:23.5]} 16. Bxf5 {[%clk 0:02:47.4]} 16... Qxf5
{[%clk 0:04:21.4]} 17. Kh2 {[%clk 0:02:44.7]} 17... Bd6+ {[%clk 0:04:18.1]} 18.
f4 {[%clk 0:02:38.7]} 18... Bxf4+ {[%clk 0:04:16.3]} 19. Bxf4 {[%clk 0:02:35.3]}
19... Qxf4+ {[%clk 0:04:16.2]} 20. Kg1 {[%clk 0:02:29.2]} 20... d4 {[%clk
0:04:12.6]} 21. Ne2 {[%clk 0:02:16.4]} 21... Qg5+ {[%clk 0:04:10.4]} 22. Ng3
{[%clk 0:02:14.5]} 22... Ne4 {[%clk 0:04:07.6]} 23. Qg4 {[%clk 0:02:07.8]} 23...
Qxg4 {[%clk 0:04:05.3]} 24. hxg4 {[%clk 0:02:05.5]} 24... Nxg3 {[%clk
0:04:05.2]} 25. fxg3 {[%clk 0:02:03.5]} 25... Rac8 {[%clk 0:04:04.7]} 26. Rac1
{[%clk 0:01:56]} 26... Rfd8 {[%clk 0:04:01.6]} 27. Rxc8 {[%clk 0:01:44.1]} 27...
Rxc8 {[%clk 0:04:00.4]} 28. Rd1 {[%clk 0:01:42.6]} 28... Kf8 {[%clk 0:03:58.3]}
29. Rxd4 {[%clk 0:01:40]} 29... Rc1+ {[%clk 0:03:57.9]} 30. Kf2 {[%clk 0:01:37]}
30... Rc2+ {[%clk 0:03:57.8]} 31. Kf3 {[%clk 0:01:34.3]} 31... Rxb2 {[%clk
0:03:56.8]} 32. Rd7 {[%clk 0:01:30.2]} 32... Ke8 {[%clk 0:03:54.5]} 33. Rc7
{[%clk 0:01:27.3]} 33... a5 {[%clk 0:03:54.1]} 34. Ke4 {[%clk 0:01:22.6]} 34...
a4 {[%clk 0:03:52.6]} 35. Kd5 {[%clk 0:01:17]} 35... a3 {[%clk 0:03:50.5]} 36.
Kd6 {[%clk 0:01:15.5]} 36... Rd2+ {[%clk 0:03:48.6]} 37. Ke5 {[%clk 0:01:13.2]}
37... Rxa2 {[%clk 0:03:47.5]} 38. Kd6 {[%clk 0:01:11.6]} 38... Rd2+ {[%clk
0:03:46.1]} 39. Ke5 {[%clk 0:01:10.3]} 39... a2 {[%clk 0:03:45.6]} 40. Rc1
{[%clk 0:01:01]} 40... Kd7 {[%clk 0:03:41.2]} 41. Ra1 {[%clk 0:00:58.7]} 41...
b5 {[%clk 0:03:40.3]} 42. Ke4 {[%clk 0:00:57.6]} 42... b4 {[%clk 0:03:39.7]} 43.
Ke3 {[%clk 0:00:56.5]} 43... b3 {[%clk 0:03:39]} 44. Kxd2 {[%clk 0:00:54.2]}
44... b2 {[%clk 0:03:38.3]} 45. Rd1 {[%clk 0:00:51.1]} 45... b1=Q {[%clk
0:03:36.5]} 46. Ke2+ {[%clk 0:00:49.4]} 46... Qxd1+ {[%clk 0:03:32.8]} 47. Kxd1
{[%clk 0:00:49.3]} 47... a1=Q+ {[%clk 0:03:32.2]} 0-1

[Event "Live Chess"]
[Site "Chess.com"]
[Date "2023.05.21"]
[Round "-"]
[White "mach247"]
[Black "garyjc"]
[Result "0-1"]
[WhiteElo "1331"]
[BlackElo "1049"]
[TimeControl "300"]
[EndTime "7:29:10 PDT"]
[Termination "garyjc won by resignation"]

1. e4 {[%clk 0:04:59.1]} 1... c5 {[%clk 0:04:57.2]} 2. Nf3 {[%clk 0:04:58.3]}
2... a6 {[%clk 0:04:52.3]} 3. d4 {[%clk 0:04:57.4]} 3... cxd4 {[%clk 0:04:50.4]}
4. Nxd4 {[%clk 0:04:57.3]} 4... Nf6 {[%clk 0:04:42.3]} 5. Nc3 {[%clk 0:04:56]}
5... e6 {[%clk 0:04:27.4]} 6. Be3 {[%clk 0:04:53.1]} 6... b5 {[%clk 0:04:20.3]}
7. Be2 {[%clk 0:04:35.3]} 7... Bb7 {[%clk 0:04:17.3]} 8. f3 {[%clk 0:04:32.9]}
8... b4 {[%clk 0:04:11.1]} 9. Nb1 {[%clk 0:04:32.2]} 9... Be7 {[%clk 0:04:03.4]}
10. c3 {[%clk 0:04:31.1]} 10... a5 {[%clk 0:03:56.1]} 11. O-O {[%clk 0:04:29]}
11... O-O {[%clk 0:03:51.7]} 12. cxb4 {[%clk 0:04:11.2]} 12... Bxb4 {[%clk
0:03:44.3]} 13. a3 {[%clk 0:04:09.8]} 13... Be7 {[%clk 0:03:36.5]} 14. Nb5
{[%clk 0:04:06.2]} 14... d5 {[%clk 0:03:11.3]} 15. e5 {[%clk 0:03:56.4]} 15...
Nfd7 {[%clk 0:03:04.6]} 16. f4 {[%clk 0:03:52.2]} 16... Nc6 {[%clk 0:02:57.1]}
17. N1c3 {[%clk 0:03:35.2]} 17... d4 {[%clk 0:02:40.1]} 18. Bxd4 {[%clk
0:03:33.9]} 18... Nxd4 {[%clk 0:02:33]} 19. Qxd4 {[%clk 0:03:30.9]} 19... Bc5
{[%clk 0:02:25.6]} 0-1

[Event "Live Chess"]
[Site "Chess.com"]
[Date "2023.05.21"]
[Round "-"]
[White "grillage"]
[Black "JoRoSaR"]
[Result "1-0"]
[WhiteElo "1785"]
[BlackElo "1671"]
[TimeControl "300"]
[EndTime "7:29:33 PDT"]
[Termination "grillage won by resignation"]

1. d4 {[%clk 0:04:59.2]} 1... f5 {[%clk 0:04:58.9]} 2. Bg5 {[%clk 0:04:56.7]}
2... g6 {[%clk 0:04:57.7]} 3. Nc3 {[%clk 0:04:54.4]} 3... Bg7 {[%clk 0:04:57]}
4. e4 {[%clk 0:04:52.6]} 4... fxe4 {[%clk 0:04:55.8]} 5. Nxe4 {[%clk 0:04:51]}
5... Nf6 {[%clk 0:04:54.6]} 6. Bxf6 {[%clk 0:04:46.1]} 6... exf6 {[%clk
0:04:54.5]} 7. Nf3 {[%clk 0:04:31]} 7... O-O {[%clk 0:04:53.4]} 8. Bd3 {[%clk
0:04:27.7]} 8... d5 {[%clk 0:04:52.7]} 9. Nc5 {[%clk 0:04:16.6]} 9... b6 {[%clk
0:04:51.8]} 10. Nb3 {[%clk 0:04:09.3]} 10... Bb7 {[%clk 0:04:50.1]} 11. O-O
{[%clk 0:04:07.3]} 11... Nd7 {[%clk 0:04:48.1]} 12. Re1 {[%clk 0:04:05.3]} 12...
Rc8 {[%clk 0:04:47.1]} 13. c4 {[%clk 0:04:03.7]} 13... c5 {[%clk 0:04:45.3]} 14.
dxc5 {[%clk 0:03:55.8]} 14... Nxc5 {[%clk 0:04:44.2]} 15. Nxc5 {[%clk
0:03:53.9]} 15... Rxc5 {[%clk 0:04:44.1]} 16. cxd5 {[%clk 0:03:52.3]} 16... Rxd5
{[%clk 0:04:41]} 17. Bc4 {[%clk 0:03:50.7]} 17... b5 {[%clk 0:04:31.2]} 18.
Bxd5+ {[%clk 0:03:49.6]} 18... Bxd5 {[%clk 0:04:31.1]} 19. Re3 {[%clk
0:03:42.4]} 19... Rf7 {[%clk 0:04:23.4]} 20. Rd3 {[%clk 0:03:41.1]} 20... Rd7
{[%clk 0:04:22.8]} 21. Rc1 {[%clk 0:03:36.7]} 21... f5 {[%clk 0:04:21.1]} 22.
Rc5 {[%clk 0:03:26.4]} 22... Be6 {[%clk 0:04:18.4]} 23. Rxd7 {[%clk 0:03:23.7]}
23... Qxd7 {[%clk 0:04:18.3]} 24. Qxd7 {[%clk 0:03:21.4]} 24... Bxd7 {[%clk
0:04:18.2]} 25. Rc7 {[%clk 0:03:20.7]} 25... Be6 {[%clk 0:04:16.8]} 26. Rxa7
{[%clk 0:03:18.3]} 26... Bxb2 {[%clk 0:04:15.9]} 27. Ng5 {[%clk 0:03:09.8]}
27... Bc4 {[%clk 0:04:13.1]} 28. h4 {[%clk 0:03:05.9]} 28... Bc1 {[%clk
0:04:12.3]} 29. Nf3 {[%clk 0:03:03.5]} 29... Be2 {[%clk 0:04:10.1]} 30. Nd4
{[%clk 0:02:59.7]} 30... Bd3 {[%clk 0:04:04.4]} 31. Rb7 {[%clk 0:02:55]} 31...
Bb2 {[%clk 0:04:00.4]} 32. Nxb5 {[%clk 0:02:52.2]} 32... Be5 {[%clk 0:03:59.6]}
33. a4 {[%clk 0:02:48.3]} 33... Be4 {[%clk 0:03:56.5]} 34. Re7 {[%clk
0:02:45.5]} 34... Bf4 {[%clk 0:03:52.5]} 35. g3 {[%clk 0:02:42]} 35... Bd2
{[%clk 0:03:47.2]} 36. Rd7 {[%clk 0:02:34.7]} 36... Bb4 {[%clk 0:03:42.2]} 37.
Nd6 {[%clk 0:02:30.2]} 37... Bc2 {[%clk 0:03:40.7]} 38. Ne8 {[%clk 0:01:54.4]}
38... Bxa4 {[%clk 0:03:38.6]} 39. Nf6+ {[%clk 0:01:50.8]} 39... Kf8 {[%clk
0:03:33.2]} 40. Rd4 {[%clk 0:01:46.7]} 40... Be7 {[%clk 0:03:30.1]} 41. Nxh7+
{[%clk 0:01:44.7]} 41... Kg7 {[%clk 0:03:29.3]} 42. Rxa4 {[%clk 0:01:43.6]}
42... Kxh7 {[%clk 0:03:28.3]} 43. Ra7 {[%clk 0:01:43.1]} 1-0

[Event "Live Chess"]
[Site "Chess.com"]
[Date "2023.05.21"]
[Round "-"]
[White "Cimon"]
[Black "ramses-IIG"]
[Result "1-0"]
[WhiteElo "1845"]
[BlackElo "870"]
[TimeControl "300"]
[EndTime "7:29:38 PDT"]
[Termination "Cimon won by resignation"]

1. Nf3 {[%clk 0:04:58]} 1... d5 {[%clk 0:04:55.3]} 2. d4 {[%clk 0:04:55.7]} 2...
Nc6 {[%clk 0:04:55.2]} 3. Bf4 {[%clk 0:04:52.8]} 3... Bf5 {[%clk 0:04:52.6]} 4.
c3 {[%clk 0:04:50.8]} 4... e6 {[%clk 0:04:49.9]} 5. Qb3 {[%clk 0:04:48]} 5... b6
{[%clk 0:04:44.5]} 6. e3 {[%clk 0:04:44.5]} 6... Bd6 {[%clk 0:04:34.5]} 7. Bb5
{[%clk 0:04:41.5]} 7... Bxf4 {[%clk 0:04:25.1]} 8. Bxc6+ {[%clk 0:04:39.6]} 8...
Ke7 {[%clk 0:04:18.8]} 9. exf4 {[%clk 0:04:34.2]} 9... Rb8 {[%clk 0:04:11.5]}
10. Nbd2 {[%clk 0:04:29.4]} 10... Qd6 {[%clk 0:04:10.2]} 11. Bb5 {[%clk
0:04:23.2]} 11... Qxf4 {[%clk 0:03:58.9]} 12. O-O {[%clk 0:04:21.2]} 12... Nh6
{[%clk 0:03:53.1]} 13. c4 {[%clk 0:04:11]} 13... f6 {[%clk 0:03:41.1]} 14. cxd5
{[%clk 0:04:09.3]} 14... exd5 {[%clk 0:03:38]} 15. Rfe1+ {[%clk 0:04:05.2]}
15... Kf7 {[%clk 0:03:33.7]} 16. Qxd5+ {[%clk 0:04:02.9]} 16... Kg6 {[%clk
0:03:33.3]} 17. g3 {[%clk 0:03:34.2]} 17... Qd6 {[%clk 0:03:11]} 18. Nh4+ {[%clk
0:03:30.3]} 18... Kh5 {[%clk 0:02:55.2]} 19. Qxd6 {[%clk 0:03:20.1]} 19... cxd6
{[%clk 0:02:55.1]} 20. Be2+ {[%clk 0:03:18.5]} 20... Ng4 {[%clk 0:02:39.6]} 21.
h3 {[%clk 0:03:13.3]} 21... Rhe8 {[%clk 0:02:19.6]} 22. hxg4+ {[%clk 0:03:11]}
22... Bxg4 {[%clk 0:02:18.7]} 23. Bxg4+ {[%clk 0:03:09.4]} 23... Kxg4 {[%clk
0:02:17.9]} 24. Kg2 {[%clk 0:03:05.2]} 24... Rxe1 {[%clk 0:02:03.1]} 25. Rxe1
{[%clk 0:03:02.7]} 25... Rc8 {[%clk 0:02:01.1]} 26. Re4+ {[%clk 0:02:57.6]}
26... Kg5 {[%clk 0:01:58.3]} 27. f4+ {[%clk 0:02:52.8]} 27... Kh6 {[%clk
0:01:54.6]} 28. Nf5+ {[%clk 0:02:51.4]} 28... Kg6 {[%clk 0:01:51.8]} 29. Ne7+
{[%clk 0:02:50.1]} 29... Kf7 {[%clk 0:01:50.7]} 30. Nxc8 {[%clk 0:02:48.9]} 1-0

[Event "Live Chess"]
[Site "Chess.com"]
[Date "2023.05.21"]
[Round "-"]
[White "NomisY"]
[Black "Ed_Knox"]
[Result "0-1"]
[WhiteElo "1526"]
[BlackElo "1459"]
[TimeControl "300"]
[EndTime "7:29:45 PDT"]
[Termination "Ed_Knox won on time"]

1. d4 {[%clk 0:04:57.1]} 1... g6 {[%clk 0:04:58.6]} 2. c4 {[%clk 0:04:55.7]}
2... Bg7 {[%clk 0:04:58]} 3. Nc3 {[%clk 0:04:55.1]} 3... d6 {[%clk 0:04:57.6]}
4. e4 {[%clk 0:04:53.4]} 4... e5 {[%clk 0:04:56.9]} 5. d5 {[%clk 0:04:40.6]}
5... Nf6 {[%clk 0:04:51.9]} 6. f3 {[%clk 0:04:35.7]} 6... a5 {[%clk 0:04:51]} 7.
Be3 {[%clk 0:04:35]} 7... Na6 {[%clk 0:04:41.5]} 8. Qd2 {[%clk 0:04:32.9]} 8...
O-O {[%clk 0:04:38.8]} 9. Nge2 {[%clk 0:04:26.4]} 9... Bd7 {[%clk 0:04:30.8]}
10. O-O-O {[%clk 0:04:21.3]} 10... c6 {[%clk 0:04:17.4]} 11. g4 {[%clk
0:04:17.4]} 11... Ne8 {[%clk 0:04:11.5]} 12. Ng3 {[%clk 0:04:07.2]} 12... cxd5
{[%clk 0:04:09]} 13. cxd5 {[%clk 0:04:05.4]} 13... Rc8 {[%clk 0:04:03.8]} 14.
Kb1 {[%clk 0:04:04.6]} 14... Nc5 {[%clk 0:03:41.7]} 15. h4 {[%clk 0:04:02.1]}
15... b5 {[%clk 0:03:20.9]} 16. Bxb5 {[%clk 0:03:03.4]} 16... Bxb5 {[%clk
0:03:18]} 17. Nxb5 {[%clk 0:03:03]} 17... Rb8 {[%clk 0:02:27.6]} 18. Na3 {[%clk
0:02:31.5]} 18... Qb6 {[%clk 0:02:17.9]} 19. Nc4 {[%clk 0:02:19.2]} 19... Qb5
{[%clk 0:02:13.4]} 20. Nxa5 {[%clk 0:02:02.5]} 20... Nd3 {[%clk 0:02:06.4]} 21.
Nb3 {[%clk 0:01:55.3]} 21... Nb4 {[%clk 0:01:52.1]} 22. Nc1 {[%clk 0:01:29.7]}
22... Nc7 {[%clk 0:01:39.6]} 23. Nge2 {[%clk 0:01:18.8]} 23... Rb7 {[%clk
0:01:35.2]} 24. Nc3 {[%clk 0:01:17.7]} 24... Qa6 {[%clk 0:01:21.7]} 25. a3
{[%clk 0:01:10.5]} 25... Ra8 {[%clk 0:01:17]} 26. axb4 {[%clk 0:01:03]} 26...
Qa1+ {[%clk 0:01:15.7]} 27. Kc2 {[%clk 0:01:02.3]} 27... Rxb4 {[%clk 0:01:05]}
28. Nd3 {[%clk 0:00:57.9]} 28... Qa6 {[%clk 0:00:36.7]} 29. Nxb4 {[%clk
0:00:54.2]} 29... Qc4 {[%clk 0:00:32.4]} 30. Nc6 {[%clk 0:00:19.1]} 30... Ra6
{[%clk 0:00:19.4]} 31. Qd3 {[%clk 0:00:17]} 31... Qxd3+ {[%clk 0:00:16.2]} 32.
Rxd3 {[%clk 0:00:15.8]} 32... Bf8 {[%clk 0:00:13.8]} 33. Nb4 {[%clk 0:00:07.5]}
33... Rb6 {[%clk 0:00:12]} 34. Bxb6 {[%clk 0:00:05.5]} 34... Nxd5 {[%clk
0:00:11.3]} 35. Ncxd5 {[%clk 0:00:03.8]} 35... Kg7 {[%clk 0:00:08.9]} 36. g5
{[%clk 0:00:01.7]} 36... Be7 {[%clk 0:00:08.1]} 37. Nf6 {[%clk 0:00:01.3]} 37...
Bxf6 {[%clk 0:00:06.9]} 38. gxf6+ {[%clk 0:00:01.1]} 38... Kf8 {[%clk
0:00:06.5]} 39. Rxd6 {[%clk 0:00:00.4]} 39... h5 {[%clk 0:00:06.1]} 0-1

[Event "Live Chess"]
[Site "Chess.com"]
[Date "2023.05.21"]
[Round "-"]
[White "Hacker_2009"]
[Black "Daniel_Gliddon_FA"]
[Result "0-1"]
[WhiteElo "1938"]
[BlackElo "1258"]
[TimeControl "300"]
[EndTime "7:29:48 PDT"]
[Termination "Daniel_Gliddon_FA won by resignation"]

1. d4 {[%clk 0:04:58.9]} 1... Nf6 {[%clk 0:04:57.2]} 2. Nf3 {[%clk 0:04:57.9]}
2... g6 {[%clk 0:04:55.7]} 3. c4 {[%clk 0:04:56.6]} 3... Bg7 {[%clk 0:04:53.8]}
4. Nc3 {[%clk 0:04:56.2]} 4... O-O {[%clk 0:04:46.9]} 5. e4 {[%clk 0:04:54.4]}
5... d6 {[%clk 0:04:43.5]} 6. Be2 {[%clk 0:04:51.1]} 6... Bg4 {[%clk 0:04:37.5]}
7. O-O {[%clk 0:04:49.7]} 7... Bxf3 {[%clk 0:04:34.1]} 8. Bxf3 {[%clk
0:04:48.5]} 8... e5 {[%clk 0:04:32.8]} 9. d5 {[%clk 0:04:45.1]} 9... Nbd7 {[%clk
0:04:30]} 10. b4 {[%clk 0:04:44.1]} 10... Qe7 {[%clk 0:04:28.3]} 11. a3 {[%clk
0:04:42.9]} 11... Rad8 {[%clk 0:04:16.7]} 12. Nb5 {[%clk 0:04:41.8]} 12... a6
{[%clk 0:04:06.7]} 13. Nc3 {[%clk 0:04:36.3]} 13... Nb6 {[%clk 0:04:04.6]} 14.
Qb3 {[%clk 0:04:32.9]} 14... Nfd7 {[%clk 0:03:46.8]} 15. Be3 {[%clk 0:04:28.4]}
15... f5 {[%clk 0:03:43]} 16. c5 {[%clk 0:04:25.8]} 16... f4 {[%clk 0:03:39.6]}
17. cxb6 {[%clk 0:04:24.7]} 17... fxe3 {[%clk 0:03:30.4]} 18. bxc7 {[%clk
0:04:24.2]} 18... Rc8 {[%clk 0:03:28.1]} 19. fxe3 {[%clk 0:04:22.7]} 19... Rxc7
{[%clk 0:03:20.7]} 20. Bg4 {[%clk 0:04:21.6]} 20... Nf6 {[%clk 0:03:12.3]} 21.
Be6+ {[%clk 0:04:20.3]} 21... Kh8 {[%clk 0:03:09.4]} 22. Ne2 {[%clk 0:04:15.6]}
22... Nxe4 {[%clk 0:03:05.8]} 23. Rxf8+ {[%clk 0:04:14.5]} 23... Bxf8 {[%clk
0:02:58.6]} 24. Rf1 {[%clk 0:04:13.6]} 24... Nd2 {[%clk 0:02:54.9]} 25. Qd1
{[%clk 0:04:06.5]} 25... Nxf1 {[%clk 0:02:53.1]} 26. Qxf1 {[%clk 0:04:06.4]}
26... Bg7 {[%clk 0:02:46.5]} 27. Ng3 {[%clk 0:04:00.4]} 27... Qg5 {[%clk
0:02:39.6]} 28. Qe1 {[%clk 0:03:56.2]} 28... Rc2 {[%clk 0:02:22.1]} 29. e4
{[%clk 0:03:45]} 29... Rc1 {[%clk 0:02:17.5]} 0-1